bitfinex/quotes_ETHUSD_20251218
["timestamp","ask_amount","ask_price","bid_price","bid_amount"]
[1766018818893,0.765504,2840.4,2839.7,2.80302]
[1766018819079,0.765504,2840.4,2839.8,2.1892]
[1766018819465,0.359,2840.3,2839.8,2.1892]
[1766018820188,0.359,2840.3,2839.8,2.5482]
[1766018820566,0.406504,2840.4,2839.9,2.5482]
[1766018820888,0.765504,2840.4,2839.9,2.5482]
[1766018821093,0.359,2840.3,2839.7,0.61382]
[1766018821296,0.359,2840.3,2839.7,0.359]
[1766018821484,0.359,2840.3,2839.7,2.5482]
[1766018822074,0.001,2840.4,2839.8,2.5482]
[1766018822589,0.36,2840.4,2839.8,2.5482]
[1766018822765,0.36,2840.4,2839.9,2.44402]
[1766018823287,0.001,2840.2,2839.9,0.25482]
[1766018823463,0.36,2840.2,2839.9,0.25482]
[1766018823870,0.001,2840.2,2839.9,0.25482]
[1766018824074,0.001,2840.2,2840.0,2.5482]
[1766018824273,0.001,2840.2,2840.0,2.828502]
[1766018825694,0.001,2840.2,2840.0,2.469502]
[1766018826217,0.001,2840.2,2840.0,2.828502]
[1766018826398,0.001,2840.2,2840.1,2.1892]
[1766018827794,0.001,2840.5,2840.3,2.1892]
[1766018828196,0.001,2840.5,2840.3,2.5482]
[1766018828375,0.001,2840.5,2840.3,2.80302]
[1766018828574,0.001,2840.5,2840.3,2.44402]
[1766018828775,0.001,2840.5,2839.5,6.10480242]
[1766018828977,0.001,2840.5,2839.8,2.1892]
[1766018829284,0.36,2840.5,2840.0,2.1892]
[1766018829488,0.36,2840.5,2840.1,2.1892]
[1766018829673,0.36,2840.5,2839.9,2.1892]
[1766018829873,0.36,2840.5,2839.7,2.5482]
[1766018830072,0.359,2840.4,2839.8,2.44402]
[1766018830301,0.359,2840.4,2839.6,0.3674]
[1766018830707,0.359,2840.4,2839.5,2.1887]
[1766018832497,0.359,2840.4,2839.5,2.5586]
[1766018835905,0.359,2840.4,2839.7,2.317]
[1766018838306,0.36,2840.4,2839.7,2.317]
[1766018838909,0.001,2840.4,2839.7,2.317]
[1766018839105,0.3425,2840.4,2839.8,2.317]
[1766018840811,0.3425,2840.4,2839.8,2.6869]
[1766018845607,0.3425,2840.4,2839.9,0.3699]
[1766018845812,0.3425,2840.4,2840.0,2.317]
[1766018846108,0.3425,2840.4,2839.9,0.3699]
[1766018846309,0.3425,2840.4,2839.9,2.6869]
[1766018846514,0.3425,2840.4,2839.9,2.317]
[1766018847496,0.3425,2840.4,2839.8,0.002]
[1766018848323,0.3415,2840.3,2839.8,0.002]
[1766018854118,0.3415,2840.3,2839.8,2.319]
[1766018854616,0.3415,2840.3,2839.8,2.6889]
[1766018855815,0.3415,2840.3,2839.9,0.3699]
[1766018856014,0.3425,2840.4,2839.9,2.6869]
[1766018857405,0.001,2840.6,2840.1,0.3699]
[1766018857724,0.001,2840.6,2839.9,0.63879]
[1766018857725,0.3425,2840.6,2839.9,0.63879]
[1766018858096,0.3425,2840.6,2839.9,2.95579]
[1766018858293,0.3425,2840.6,2840.0,0.295779]
[1766018858926,0.3425,2840.6,2840.0,2.612779]
[1766018860525,0.3425,2840.6,2840.2,0.3699]
[1766018860526,0.001,2840.6,2840.2,0.3699]
[1766018860725,0.001,2840.6,2840.3,2.6869]
[1766018861599,0.001,2840.6,2840.4,0.3729]
[1766018861799,0.001,2840.7,2840.4,0.3729]
[1766018862116,0.001,2840.7,2840.5,2.0905]
[1766018863228,0.001,2840.7,2840.5,2.4634]
[1766018865111,0.001,2840.7,2839.8,6.10196017]
[1766018865314,0.3582,2840.7,2840.1,2.0905]
[1766018865641,0.3582,2840.7,2839.9,2.0905]
[1766018865826,0.3582,2840.7,2840.0,0.3729]
[1766018866141,0.3582,2840.7,2840.0,2.4634]
[1766018866641,0.3582,2840.7,2840.1,2.4634]
[1766018866812,0.3582,2840.7,2840.2,0.24634]
[1766018867198,0.3582,2840.7,2840.2,2.0905]
[1766018867626,0.001,2840.7,2840.3,0.3729]
[1766018867820,0.001,2840.7,2840.4,2.4634]
[1766018868024,0.3572,2840.6,2840.0,2.4634]
[1766018868326,0.3572,2840.6,2840.0,2.0905]
[1766018868505,0.3572,2840.6,2840.2,2.0905]
[1766018868705,0.3572,2840.6,2840.2,2.4634]
[1766018869107,0.001,2840.7,2840.3,0.3729]
[1766018869308,0.001,2840.7,2840.3,2.4634]
[1766018870323,0.3582,2840.7,2840.3,2.4634]
[1766018871610,0.3582,2840.7,2840.3,2.0905]
[1766018873230,0.001,2840.7,2840.4,0.3729]
[1766018873429,0.3582,2840.7,2840.1,0.3729]
[1766018873625,0.3582,2840.7,2840.3,0.3729]
[1766018873825,0.3582,2840.7,2840.3,2.4634]
[1766018874904,0.001,2840.7,2840.5,2.0905]
[1766018875110,0.001,2840.7,2840.5,2.4634]
[1766018875644,0.001,2840.7,2840.5,2.0905]
[1766018876246,0.001,2840.7,2840.6,2.4634]
[1766018877032,0.3572,2841.1,2840.7,2.0905]
[1766018878040,0.3572,2841.1,2840.6,2.4634]
[1766018878445,0.0317298,2841.3,2840.6,2.0905]
[1766018878614,0.3582,2841.4,2840.7,2.4634]
[1766018879250,0.3582,2841.4,2840.5,0.3729]
[1766018879636,0.3572,2841.3,2840.5,0.3729]
[1766018879831,0.3572,2841.3,2840.5,2.4634]
[1766018880033,0.3572,2841.2,2840.5,2.4634]
[1766018880237,0.3572,2841.1,2840.5,2.4634]
[1766018881956,0.3572,2841.1,2840.5,2.0905]
[1766018883442,0.3572,2841.1,2840.5,2.4634]
[1766018883642,0.3572,2841.1,2840.7,2.0905]
[1766018885921,0.3572,2841.1,2840.6,0.3729]
[1766018886140,0.3572,2841.1,2840.6,2.4634]
[1766018887230,0.3572,2841.1,2840.3,0.002]
[1766018887231,0.3572,2841.1,2840.3,2.4654]
[1766018887432,0.3572,2841.1,2840.4,2.33704]
[1766018887749,0.3572,2841.1,2840.4,2.70994]
[1766018887922,0.3572,2841.1,2840.5,2.4634]
[1766018890249,0.46438023,2841.1,2840.4,0.24654]
[1766018890453,0.46438023,2841.1,2840.3,0.002]
[1766018890454,0.3443,2841.0,2840.3,0.002]
[1766018891527,0.3443,2841.0,2840.3,2.4447]
[1766018897657,0.3443,2841.0,2840.4,0.3433]
[1766018897856,0.3443,2841.0,2840.4,2.4427]
[1766018898157,0.001,2841.1,2840.9,2.4427]
[1766018898669,0.001,2841.1,2840.9,2.0994]
[1766018900041,0.001,2841.1,2840.7,0.3433]
[1766018900244,0.001,2841.1,2840.8,2.0994]
[1766018900833,0.3563,2841.1,2840.8,2.0994]
[1766018901162,0.001,2841.1,2840.8,2.68697]
[1766018901932,0.001,2841.1,2840.8,0.24427]
[1766018902134,0.0327298,2841.4,2840.3,0.002]
[1766018902343,0.0327298,2841.4,2840.6,2.0994]
[1766018902543,0.0327298,2841.4,2840.8,2.0994]
[1766018902734,0.0327298,2841.4,2841.0,2.0994]
[1766018902935,0.0327298,2841.4,2841.0,2.4427]
[1766018903636,0.0327298,2841.4,2841.0,2.0994]
[1766018903959,0.0327298,2841.4,2841.1,2.4427]
[1766018905945,0.3553,2841.3,2840.6,2.0994]
[1766018906145,0.001,2841.1,2840.8,2.0994]
[1766018907353,0.3880298,2841.4,2840.7,0.21014]
[1766018907569,0.405504,2841.1,2840.5,0.002]
[1766018907779,0.3553,2841.0,2840.5,0.002]
[1766018908446,0.3553,2841.0,2840.5,2.1014]
[1766018909369,0.3553,2841.0,2840.5,0.002]
[1766018919183,0.3553,2841.0,2840.3,0.002]
[1766018919382,0.406504,2841.1,2840.3,0.002]
[1766018919383,0.001,2841.1,2840.6,2.0994]
[1766018919573,0.001,2841.6,2840.7,6.3433208]
[1766018919772,0.001,2841.6,2841.1,0.3433]
[1766018919980,0.001,2841.6,2841.4,2.4427]
[1766018922098,0.001,2841.7,2841.6,2.0832]
[1766018922256,0.001,2841.7,2841.5,0.3748]
[1766018922460,0.001,2841.7,2841.5,2.458]
[1766018922870,0.001,2841.6,2841.5,2.458]
[1766018923176,0.001,2841.6,2841.5,2.0832]
[1766018923681,0.001,2841.7,2841.5,2.329]
[1766018923876,0.001,2841.7,2841.6,2.458]
[1766018924277,0.001,2841.7,2841.6,2.0832]
[1766018924877,0.001,2841.8,2841.6,2.0832]
[1766018925059,0.3388,2842.2,2841.7,2.458]
[1766018925888,0.001,2842.3,2841.9,2.458]
[1766018926068,0.001,2842.3,2842.1,2.0832]
[1766018926273,0.001,2842.3,2842.1,2.458]
[1766018927193,0.001,2842.3,2842.1,2.0832]
[1766018927894,0.001,2842.3,2842.1,2.458]
[1766018928101,0.001,2842.3,2841.8,0.2458]
[1766018928264,0.3398,2842.3,2841.2,2.0832]
[1766018928464,0.3398,2842.3,2841.6,2.458]
[1766018929464,0.3398,2842.3,2841.7,0.3748]
[1766018929764,0.3398,2842.3,2841.7,2.458]
[1766018931340,0.3398,2842.3,2841.7,2.0832]
[1766018931464,0.3388,2842.2,2841.3,2.458]
[1766018931667,0.3388,2842.2,2841.3,2.7038]
[1766018933765,0.3388,2842.2,2841.4,2.0832]
[1766018934899,0.3388,2842.2,2841.4,2.458]
[1766018937904,0.3398,2842.2,2841.4,2.458]
[1766018938206,0.3398,2842.2,2841.4,2.0832]
[1766018938378,0.3398,2842.2,2841.6,2.0832]
[1766018940085,0.001,2842.2,2841.6,2.0832]
[1766018940292,0.001,2842.2,2842.0,2.0832]
[1766018941314,0.001,2842.2,2841.9,2.458]
[1766018941487,0.001,2842.2,2841.9,2.0832]
[1766018942716,0.001,2842.2,2841.7,0.3748]
[1766018942905,0.3398,2842.2,2841.8,2.0832]
[1766018943625,0.3398,2842.2,2841.8,2.458]
[1766018947000,0.3398,2842.2,2841.8,2.0832]
[1766018947517,0.3398,2842.2,2841.5,2.0832]
[1766018947717,0.3398,2842.2,2841.5,2.29152]
[1766018948302,0.3398,2842.2,2841.5,0.58312]
[1766018948502,0.3398,2842.2,2841.5,2.458]
[1766018948703,0.3398,2842.2,2841.7,2.0832]
[1766018948927,0.001,2842.2,2841.7,2.458]
[1766018949124,0.3398,2842.2,2841.3,2.0832]
[1766018949298,0.3398,2842.2,2841.2,6.09188469]
[1766018949299,0.3398,2842.2,2841.6,0.3748]
[1766018949503,0.3398,2842.2,2841.7,2.458]
[1766018949839,0.001,2842.2,2841.8,0.3748]
[1766018950006,0.001,2842.2,2842.1,2.0832]
[1766018950211,0.001,2842.2,2841.2,6.09188469]
[1766018950528,0.361,2842.2,2841.5,2.1128]
[1766018950715,0.361,2842.2,2841.7,2.1128]
[1766018950916,0.361,2842.2,2841.8,2.3426]
[1766018951140,0.001,2842.2,2841.9,0.3401]
[1766018951444,0.001,2842.2,2841.9,2.3439]
[1766018951632,0.001,2842.2,2841.9,2.0038]
[1766018951844,0.361,2842.2,2841.8,2.0038]
[1766018952210,0.361,2842.2,2841.9,2.0038]
[1766018952211,0.001,2842.2,2841.9,2.0038]
[1766018952416,0.001,2842.2,2842.1,2.0038]
[1766018952829,0.001,2842.2,2842.0,0.3401]
[1766018952830,0.001,2842.2,2842.0,2.3439]
[1766018953135,0.001,2842.2,2842.0,2.0038]
[1766018954432,0.001,2842.2,2841.9,2.3439]
[1766018955142,0.001,2842.2,2841.9,2.0038]
[1766018955314,0.001,2842.2,2841.9,2.3439]
[1766018956452,0.001,2842.2,2842.0,2.0038]
[1766018956653,0.001,2842.2,2842.0,2.3439]
[1766018957714,0.001,2842.6,2842.4,2.3439]
[1766018958627,0.001,2842.6,2842.4,2.0038]
[1766018960563,0.001,2842.6,2842.4,2.3439]
[1766018960754,0.001,2842.6,2842.5,2.0038]
[1766018960944,0.001,2842.8,2842.5,2.0038]
[1766018961116,0.001,2842.8,2842.6,0.3401]
[1766018961317,0.3427298,2843.1,2842.6,2.0038]
[1766018963227,0.87227216,2843.1,2842.3,2.0038]
[1766018963531,0.3427,2843.0,2842.4,0.20038]
[1766018964052,0.3427,2843.0,2842.4,2.54428]
[1766018965775,0.3427,2843.0,2842.4,0.54048]
[1766018965980,0.3427,2843.0,2842.5,2.3439]
[1766018966470,0.3427,2843.0,2842.1,2.0038]
[1766018966650,0.3427,2843.0,2842.2,2.0038]
[1766018966954,0.3427,2843.0,2842.3,2.3439]
[1766018970691,0.3427,2842.8,2841.9,2.0038]
[1766018970972,0.3427,2842.8,2841.9,2.23839]
[1766018971187,0.3427,2842.8,2842.3,0.002]
[1766018973566,0.46438023,2842.9,2842.0,0.3401]
[1766018973567,0.3427,2842.6,2842.0,0.3401]
[1766018973744,0.3427,2842.6,2841.9,2.23839]
[1766018973952,0.3427,2842.6,2842.0,0.258049]
[1766018974475,0.3427,2842.6,2841.9,2.3439]
[1766018975976,0.3427,2842.6,2841.9,2.0038]
[1766018976496,0.3427,2842.6,2841.8,0.3421]
[1766018977000,0.3427,2842.6,2841.8,2.3459]
[1766018978103,0.3427,2842.6,2841.9,2.3439]
[1766018978398,0.3427,2842.6,2842.0,0.23459]
[1766018978595,0.3427,2842.6,2842.0,2.0038]
[1766018978893,0.405504,2842.8,2842.2,2.3439]
[1766018979193,0.748204,2842.8,2842.2,2.3439]
[1766018980215,0.3427,2842.8,2842.2,2.3439]
[1766018980370,0.3427,2842.8,2842.4,2.3439]
[1766018980790,0.3427,2842.8,2842.4,2.0038]
[1766018980996,0.3427,2842.8,2842.2,2.3839]
[1766018981298,0.3427,2842.8,2842.2,2.62229]
[1766018982182,0.3427,2842.8,2842.2,0.57849]
[1766018982396,0.3427,2842.8,2842.3,2.4107]
[1766018985792,0.3427,2842.8,2842.3,2.0438]
[1766018985991,0.3437,2842.8,2842.3,2.0438]
[1766018986291,0.3437,2842.8,2842.3,2.4107]
[1766018986490,0.3437,2842.8,2842.3,2.0438]
[1766018986697,0.3437,2842.8,2842.1,2.4107]
[1766018986883,0.3437,2842.8,2842.1,2.65177]
[1766018992624,0.3437,2842.8,2842.2,2.0438]
[1766018992833,0.3437,2842.8,2842.2,2.4107]
[1766018993897,0.3437,2842.8,2842.1,0.24107]
[1766018993898,0.001,2842.8,2842.5,2.4107]
[1766018995240,0.3437,2842.8,2842.5,2.0438]
[1766018995428,0.3437,2842.8,2842.4,2.0438]
[1766018996201,0.3437,2842.8,2842.4,2.4107]
[1766018996615,0.001,2842.8,2842.4,2.0438]
[1766018996816,0.001,2842.8,2842.5,2.61508]
[1766018997224,0.001,2842.8,2842.5,2.24818]
[1766018997737,0.3437,2842.8,2842.5,0.20438]
[1766018997934,0.3437,2842.8,2842.4,0.3669]
[1766018998102,0.3437,2842.8,2842.4,2.4107]
[1766018999955,0.001,2842.8,2842.4,2.0438]
[1766019000141,0.001,2842.8,2842.5,2.4107]
[1766019001057,0.001,2842.8,2842.5,2.0438]
[1766019001262,0.3437,2842.8,2842.3,2.0438]
[1766019001443,0.3437,2842.8,2842.1,2.4107]
[1766019001639,0.3437,2842.8,2842.2,0.24127]
[1766019002142,0.3437,2842.8,2842.2,2.4107]
[1766019004462,0.001,2842.8,2842.6,2.0438]
[1766019004658,0.001,2842.8,2842.6,2.4107]
[1766019006060,0.001,2842.8,2842.6,2.0438]
[1766019006234,0.001,2842.8,2842.5,2.0438]
[1766019006433,0.3437,2842.8,2842.4,2.0438]
[1766019007469,0.3437,2842.8,2842.4,2.4107]
[1766019008241,0.3437,2842.8,2842.4,2.0438]
[1766019008440,0.3437,2842.8,2842.3,2.0438]
[1766019008743,0.3437,2842.8,2842.3,2.4107]
[1766019009058,0.3437,2842.8,2842.3,2.65177]
[1766019009366,0.3437,2842.8,2842.4,2.0438]
[1766019010280,0.3437,2842.8,2842.3,2.2699]
[1766019010460,0.3437,2842.8,2842.3,1.903]
[1766019010844,0.3437,2842.8,2842.3,2.2599]
[1766019013272,0.001,2842.8,2842.5,0.3655]
[1766019013461,0.001,2842.8,2842.5,2.3491]
[1766019014071,0.001,2842.8,2842.5,1.9836]
[1766019014267,0.001,2842.8,2842.7,2.3491]
[1766019014466,0.001,2842.8,2842.3,0.22599]
[1766019014666,0.001,2842.8,2842.5,1.9836]
[1766019014868,0.001,2842.8,2842.5,2.3491]
[1766019015576,0.001,2842.8,2842.5,1.9836]
[1766019015878,0.001,2843.1,2842.9,1.9836]
[1766019016384,0.3437,2843.1,2842.7,1.9836]
[1766019016881,0.001,2842.8,2842.7,1.9836]
[1766019017579,0.001,2842.8,2842.5,0.3655]
[1766019017878,0.001,2842.8,2842.3,0.002]
[1766019018085,0.001,2842.8,2842.5,2.3491]
[1766019018287,0.001,2842.8,2842.4,1.9836]
[1766019018584,0.3437,2842.8,2842.4,1.9836]
[1766019018775,0.3437,2842.8,2842.4,2.3491]
[1766019020455,0.3437,2842.8,2842.4,1.9836]
[1766019021057,0.3437,2842.8,2842.4,2.3491]
[1766019022467,0.3437,2842.8,2842.4,2.58421]
[1766019022994,0.3437,2842.8,2842.4,0.60061]
[1766019023187,0.3437,2842.8,2842.5,1.9836]
[1766019025868,0.3437,2842.8,2842.3,2.3511]
[1766019028892,0.3437,2842.8,2842.4,0.3655]
[1766019029124,0.3437,2842.8,2842.4,2.3491]
[1766019031497,0.3437,2842.8,2842.4,2.3511]
[1766019033428,0.001,2843.1,2842.7,2.3491]
[1766019034418,0.3437,2843.1,2842.7,2.3491]
[1766019034912,0.3437,2843.1,2842.5,0.3655]
[1766019035215,0.3437,2843.1,2842.7,1.9836]
[1766019038032,0.3437,2843.1,2842.5,0.3655]
[1766019038218,0.3437,2843.1,2842.5,2.3491]
[1766019038402,0.3437,2843.1,2842.5,2.58441]
[1766019038726,0.3437,2843.1,2842.5,2.21891]
[1766019039051,0.001,2843.1,2842.8,0.3655]
[1766019039331,0.001,2843.1,2842.9,2.3491]
[1766019039504,0.001,2843.1,2843.0,2.3491]
[1766019039707,0.001,2843.1,2843.0,1.9836]
[1766019041307,0.3437,2843.4,2843.0,2.3565]
[1766019042209,0.3437,2843.4,2843.0,1.9836]
[1766019042658,0.001,2843.4,2843.0,1.9836]
[1766019042928,0.001,2844.0,2843.8,2.023]
[1766019043130,0.001,2844.0,2843.4,2.023]
[1766019043339,0.3427,2843.9,2843.4,2.023]
[1766019043636,0.001,2844.0,2843.4,2.023]
[1766019043836,0.7553136,2843.9,2843.4,2.3959]
[1766019044330,0.3427,2843.8,2843.4,2.3959]
[1766019044703,0.3427,2843.8,2842.5,0.3729]
[1766019044902,0.4126136,2843.9,2842.9,2.023]
[1766019045105,0.4126136,2843.9,2842.6,0.46438023]
[1766019045106,1.12829787,2843.9,2843.3,2.3959]
[1766019046337,0.3427,2843.7,2843.0,2.2253]
[1766019046536,0.7553136,2843.7,2842.9,0.3729]
[1766019046737,0.3427,2843.6,2843.0,0.23959]
[1766019047231,0.3427,2843.6,2843.0,2.023]
[1766019047536,0.3427,2843.6,2842.9,0.3729]
[1766019047853,0.3427,2843.6,2842.9,2.3959]
[1766019048052,0.3427,2843.5,2842.9,2.023]
[1766019049325,0.4126136,2843.6,2843.0,0.3729]
[1766019049562,0.406504,2843.9,2843.4,0.3729]
[1766019049857,0.406504,2843.9,2843.5,2.3959]
[1766019050352,0.406504,2843.9,2843.7,2.3959]
[1766019050522,0.3427,2843.8,2843.1,2.023]
[1766019050722,0.3427,2843.8,2843.2,0.3729]
[1766019050935,0.3437,2843.9,2843.3,2.3959]
[1766019051352,0.3437,2843.9,2842.7,2.023]
[1766019051594,0.3427,2843.8,2843.1,2.023]
[1766019051760,0.3427,2843.8,2843.2,0.3729]
[1766019052053,0.3427,2843.8,2843.2,2.3959]
[1766019054762,0.4126136,2843.7,2843.2,2.3959]
[1766019054960,0.3427,2843.6,2843.2,2.023]
[1766019057071,0.3437,2843.6,2843.2,2.023]
[1766019060363,0.3437,2843.6,2843.0,2.3959]
[1766019060567,0.3437,2843.6,2843.2,2.023]
[1766019060770,0.3437,2843.6,2843.2,2.3959]
[1766019063170,0.3437,2843.6,2843.2,2.023]
[1766019063666,0.3437,2843.6,2843.0,2.3959]
[1766019063867,0.3437,2843.6,2843.0,2.023]
[1766019064042,0.3427,2843.5,2843.0,2.023]
[1766019064238,0.748204,2843.4,2843.0,2.3959]
[1766019064754,0.405504,2843.5,2843.0,2.3959]
[1766019065075,0.405504,2843.5,2843.0,2.023]
[1766019065272,0.748204,2843.5,2843.1,2.3959]
[1766019066841,0.3427,2843.4,2843.1,2.023]
[1766019067875,0.3437,2843.6,2843.1,2.023]
[1766019068166,0.3437,2843.6,2842.6,2.3979]
[1766019068167,0.3427,2843.5,2842.6,2.3979]
[1766019068547,0.3427,2843.3,2842.6,0.002]
[1766019073239,0.405504,2843.2,2842.6,0.002]
[1766019073573,0.3427,2843.1,2842.6,0.002]
[1766019075273,0.3427,2843.1,2842.6,1.8561]
[1766019076244,0.3427,2843.1,2842.6,2.2115]
[1766019076463,0.3427,2843.1,2842.7,2.2095]
[1766019076769,0.3427,2843.1,2842.7,1.8541]
[1766019076948,0.3427,2843.4,2842.7,2.43085]
[1766019077155,0.3427,2843.4,2842.8,2.2095]
[1766019079265,0.3427,2843.2,2842.6,0.3574]
[1766019079467,0.3427,2843.2,2842.6,0.002]
[1766019080268,0.3427,2843.2,2842.6,1.8561]
[1766019080990,0.3427,2843.2,2842.6,2.2115]
[1766019083572,0.3427,2843.3,2842.7,2.2095]
[1766019083889,0.3387,2842.7,2842.3,0.002]
[1766019084779,0.3387,2842.7,2842.0,0.002]
[1766019085958,0.3387,2842.7,2842.0,1.8561]
[1766019087185,0.405504,2842.5,2841.5,0.002]
[1766019087496,0.1956,2842.2,2841.5,1.8561]
[1766019087992,0.1956,2842.1,2841.5,1.8561]
[1766019089112,0.1956,2842.1,2841.5,0.002]
[1766019090288,0.1956,2841.9,2841.5,0.002]
[1766019090978,1.25388131,2841.9,2841.5,0.002]
[1766019091963,0.1956,2842.3,2841.5,1.8561]
[1766019092163,1.05824771,2842.1,2841.5,2.2115]
[1766019092378,0.1956,2842.1,2841.5,2.2115]
[1766019092803,0.1956,2841.9,2841.5,0.002]
[1766019094412,0.1936,2841.7,2841.2,0.002]
[1766019094910,7.6086335,2841.9,2840.6,0.002]
[1766019094911,0.1916,2841.3,2840.6,0.002]
[1766019097182,0.405504,2841.4,2840.6,0.002]
[1766019097183,0.1896,2841.2,2840.6,0.002]
[1766019097389,0.86988423,2841.4,2840.5,0.002]
[1766019097709,0.1896,2841.1,2840.5,0.002]
[1766019098081,0.405504,2841.0,2840.5,0.002]
[1766019098275,0.1896,2840.9,2840.5,0.002]
[1766019099009,0.1896,2841.2,2840.7,1.8541]
[1766019099188,0.405504,2841.3,2840.7,2.2095]
[1766019099490,0.595104,2841.3,2840.7,2.2095]
[1766019099886,0.1896,2841.2,2840.7,2.2095]
[1766019100294,0.1896,2841.2,2840.5,0.002]
[1766019100509,0.1896,2841.1,2840.5,0.002]
[1766019100687,0.1896,2841.1,2840.5,1.8561]
[1766019101511,0.1896,2841.1,2840.5,2.219]
[1766019103117,0.1896,2841.9,2841.3,2.2147]
[1766019103717,0.1896,2841.9,2841.3,3.27301864]
[1766019103899,0.1896,2841.9,2841.3,2.91011864]
[1766019105219,0.1906,2841.9,2841.3,2.91011864]
[1766019106494,0.1906,2841.9,2841.3,1.05831864]
[1766019107789,0.1896,2841.8,2841.1,2.2147]
[1766019108014,0.1896,2841.8,2841.2,1.05831864]
[1766019108220,0.1896,2841.8,2841.1,2.2147]
[1766019108732,0.65398023,2841.8,2841.1,1.8518]
[1766019108919,0.1896,2841.7,2841.1,1.8518]
[1766019109529,0.595104,2841.6,2840.9,2.2147]
[1766019109693,0.1896,2841.6,2841.1,0.3629]
[1766019109888,0.1896,2841.6,2841.2,1.8518]
[1766019110127,0.1896,2841.6,2840.8,0.3629]
[1766019110297,0.595104,2841.8,2841.2,0.3629]
[1766019110625,0.595104,2841.8,2841.2,2.2147]
[1766019110932,0.1896,2841.8,2840.7,1.8518]
[1766019111216,0.1896,2841.5,2840.8,2.2147]
[1766019111390,0.46438023,2841.5,2840.6,1.8518]
[1766019111593,0.46438023,2841.5,2840.5,0.002]
[1766019111594,0.405504,2841.2,2840.5,0.002]
[1766019111895,0.1896,2841.1,2840.5,0.002]
[1766019112436,0.1896,2841.1,2840.5,1.8538]
[1766019116228,0.1896,2841.1,2840.5,2.2167]
[1766019118023,0.1896,2841.3,2840.7,2.2147]
[1766019119868,0.405504,2841.4,2840.9,1.8518]
[1766019120067,0.405504,2841.4,2840.9,2.2147]
[1766019120068,0.595104,2841.4,2840.9,2.2147]
[1766019120269,0.1896,2841.4,2840.9,1.8518]
[1766019120423,0.1896,2841.4,2840.7,2.2147]
[1766019127389,0.1896,2841.4,2840.7,1.8518]
[1766019127584,0.1896,2841.4,2840.8,2.2147]
[1766019132465,0.1896,2841.4,2840.8,1.8518]
[1766019133365,0.1896,2841.4,2840.8,2.2238]
[1766019135801,0.405504,2841.3,2840.5,0.002]
[1766019135997,0.405504,2841.3,2840.5,1.9587]
[1766019135998,0.405504,2841.2,2840.5,1.9587]
[1766019136205,0.1896,2841.1,2840.5,1.9587]
[1766019136501,0.001,2841.4,2840.9,2.3287]
[1766019136658,0.1906,2841.4,2840.9,2.3287]
[1766019137768,0.001,2841.4,2840.9,1.9567]
[1766019137998,0.1906,2841.4,2841.0,2.3287]
[1766019138202,0.1906,2841.4,2841.0,1.9567]
[1766019139375,0.1906,2841.4,2840.8,0.372]
[1766019139601,0.001,2841.4,2841.0,0.372]
[1766019139905,0.001,2841.4,2841.1,2.3287]
[1766019140084,0.001,2841.4,2841.1,1.9567]
[1766019140511,0.001,2841.4,2840.9,0.372]
[1766019140679,0.001,2841.5,2840.6,0.372]
[1766019141194,0.1906,2841.5,2840.6,0.372]
[1766019142398,0.1906,2841.5,2840.8,0.372]
[1766019142708,0.1906,2841.5,2840.9,2.3287]
[1766019146308,0.1906,2841.5,2841.0,2.3287]
[1766019148594,0.1906,2841.5,2841.0,1.9567]
[1766019148794,0.001,2841.5,2841.1,0.372]
[1766019149112,0.001,2841.5,2841.2,2.3287]
[1766019149903,0.1896,2841.4,2840.9,0.23287]
[1766019150215,0.1896,2841.4,2840.9,2.3287]
[1766019152510,0.001,2841.5,2841.0,1.9567]
[1766019152813,0.1896,2841.4,2840.8,1.9567]
[1766019153115,0.001,2841.5,2841.0,1.9567]
[1766019153420,0.1906,2841.5,2841.0,2.3287]
[1766019153710,0.001,2841.5,2841.2,1.9567]
[1766019153899,0.001,2841.5,2840.5,0.002]
[1766019153900,0.3577,2841.5,2840.5,0.002]
[1766019156420,0.3577,2841.5,2840.9,0.372]
[1766019156741,0.3577,2841.5,2840.9,2.3287]
[1766019157512,0.3577,2841.5,2840.9,1.9567]
[1766019157817,0.3577,2841.5,2840.7,0.372]
[1766019158016,0.3577,2841.5,2840.8,1.9567]
[1766019158312,0.1866,2841.3,2840.6,0.372]
[1766019160215,0.1866,2841.3,2840.7,2.3287]
[1766019160408,0.18409241,2841.4,2840.9,2.3287]
[1766019160616,0.001,2841.8,2841.1,0.372]
[1766019160922,0.001,2841.8,2841.6,1.8816]
[1766019161427,0.001,2841.8,2841.5,2.2471]
[1766019161626,0.1866,2841.7,2840.9,0.1866]
[1766019161927,0.1866,2841.7,2840.9,1.8816]
[1766019162123,0.1866,2841.7,2841.0,0.22471]
[1766019162307,0.1866,2841.7,2841.1,2.2471]
[1766019163003,0.001,2841.8,2841.3,1.8816]
[1766019163323,0.001,2841.5,2841.2,2.2471]
[1766019163697,0.001,2841.5,2841.4,1.8816]